bitfinex/quotes_BTCUSD_20251029
["timestamp","ask_amount","ask_price","bid_price","bid_amount"]
[1761719204427,1.69196599,113220.0,113210.0,0.02749]
[1761719208758,1.45139513,113220.0,113210.0,0.02749]
[1761719213565,1.43626513,113220.0,113210.0,0.05147]
[1761719214439,1.41247783,113220.0,113210.0,0.05147]
[1761719214658,1.62134244,113220.0,113210.0,0.05147]
[1761719214868,1.24991808,113220.0,113210.0,0.05147]
[1761719216156,1.62134244,113220.0,113210.0,0.05147]
[1761719216379,1.24991808,113220.0,113210.0,0.05147]
[1761719218675,1.27370538,113220.0,113210.0,0.05147]
[1761719219531,0.90228102,113220.0,113210.0,0.22813283]
[1761719219733,1.27370538,113220.0,113210.0,0.05147]
[1761719222417,1.28665538,113220.0,113210.0,0.05147]
[1761719224385,1.65807974,113220.0,113210.0,0.02749]
[1761719224875,1.28665538,113220.0,113210.0,0.02749]
[1761719225095,1.65807974,113220.0,113210.0,0.02749]
[1761719227007,1.26072168,113220.0,113210.0,0.02749]
[1761719228479,0.88929732,113220.0,113210.0,0.02749]
[1761719228696,1.26072168,113220.0,113210.0,0.02749]
[1761719228897,1.26074225,113220.0,113210.0,0.02749]
[1761719229525,0.8892209,113220.0,113210.0,0.02749]
[1761719229728,0.8892209,113220.0,113210.0,0.05218]
[1761719229991,0.8762709,113220.0,113210.0,0.05218]
[1761719230844,0.50494353,113220.0,113210.0,0.05218]
[1761719231289,0.8762709,113220.0,113210.0,0.05218]
[1761719231711,0.90281958,113220.0,113210.0,0.05218]
[1761719231911,0.53149221,113220.0,113210.0,0.05218]
[1761719235128,0.51946476,113220.0,113210.0,0.05218]
[1761719235737,0.23049221,113220.0,113210.0,0.05218]
[1761719244584,0.23049553,113220.0,113210.0,0.05218]
[1761719244997,0.25428283,113220.0,113210.0,0.05218]
[1761719248277,0.28598908,113220.0,113210.0,0.05218]
[1761719249510,0.2594404,113220.0,113210.0,0.05218]
[1761719249920,0.59906152,113220.0,113210.0,0.05218]
[1761719250502,0.63076777,113220.0,113210.0,0.05218]
[1761719251964,0.93076777,113220.0,113210.0,0.05218]
[1761719252314,0.88318152,113220.0,113210.0,0.05218]
[1761719253404,0.89613152,113220.0,113210.0,0.05218]
[1761719253614,0.89613152,113220.0,113210.0,0.05012]
[1761719254039,0.88318152,113220.0,113210.0,0.05012]
[1761719254758,0.51185415,113220.0,113210.0,0.05012]
[1761719254939,0.88318152,113220.0,113210.0,0.05012]
[1761719256076,0.89613152,113220.0,113210.0,0.05012]
[1761719260441,0.89613185,113220.0,113210.0,0.05012]
[1761719262428,0.9278381,113220.0,113210.0,0.05012]
[1761719262859,0.90090096,113220.0,113210.0,0.05012]
[1761719263132,0.92471874,113220.0,113210.0,0.05012]
[1761719263564,0.9512674,113220.0,113210.0,0.05012]
[1761719264196,0.97032167,113220.0,113210.0,0.05012]
[1761719264632,0.97032167,113220.0,113210.0,0.02749]
[1761719264862,0.17666283,113210.0,113200.0,0.01311753]
[1761719265077,0.62651887,113210.0,113200.0,0.01311753]
[1761719265297,0.64557314,113210.0,113200.0,0.05295753]
[1761719265742,0.64557175,113210.0,113200.0,0.00147753]
[1761719267098,0.64557175,113210.0,113200.0,0.00247753]
[1761719268241,0.64557175,113210.0,113200.0,0.01816753]
[1761719268456,0.63262175,113210.0,113200.0,0.05478753]
[1761719269544,0.60880481,113210.0,113200.0,0.05478753]
[1761719270184,0.23747744,113210.0,113200.0,0.05478753]
[1761719281434,0.17669405,113190.0,113180.0,0.02655086]
[1761719281657,0.37672528,113170.0,113160.0,0.00143201]
[1761719281901,0.9019374,113170.0,113160.0,0.00143201]
[1761719282107,0.94013107,113170.0,113160.0,0.00143201]
[1761719282337,0.92492998,113170.0,113160.0,0.01712201]
[1761719282785,0.92492998,113170.0,113160.0,0.01760487]
[1761719283258,0.55360261,113170.0,113160.0,0.01760487]
[1761719283477,0.52980986,113170.0,113160.0,0.01760487]
[1761719283717,0.90113723,113170.0,113160.0,0.01760487]
[1761719284751,0.90113723,113170.0,113160.0,0.04416598]
[1761719286306,0.88461465,113170.0,113160.0,0.04416598]
[1761719286527,0.88461465,113170.0,113160.0,0.02847598]
[1761719287389,0.88461465,113170.0,113160.0,0.04500598]
[1761719289323,0.90138577,113170.0,113160.0,0.04500598]
[1761719293710,0.90138577,113170.0,113160.0,0.02847598]
[1761719294366,0.70138577,113170.0,113160.0,0.02924487]
[1761719294588,0.68843577,113170.0,113160.0,0.05310487]
[1761719294823,0.20404827,113170.0,113160.0,0.05310487]
[1761719295067,0.184994,113170.0,113160.0,0.42476677]
[1761719295279,0.184994,113170.0,113160.0,0.07966422]
[1761719296556,0.184994,113170.0,113160.0,0.08166422]
[1761719298127,0.184994,113170.0,113160.0,0.4710002]
[1761719298350,0.184994,113170.0,113160.0,0.08166422]
[1761719299481,0.184994,113170.0,113160.0,0.25840511]
[1761719301200,0.184994,113170.0,113160.0,0.08166422]
[1761719301403,0.20143612,113170.0,113160.0,0.08166422]
[1761719305759,0.20143612,113170.0,113160.0,0.25840511]
[1761719306849,0.02471084,113170.0,113160.0,0.25840511]
[1761719307059,0.20143612,113170.0,113160.0,0.25840511]
[1761719307272,0.02471084,113170.0,113160.0,0.63006701]
[1761719307489,0.00826872,113170.0,113160.0,0.7120359]
[1761719307697,0.00826872,113170.0,113160.0,0.63006701]
[1761719309707,0.02476601,113170.0,113160.0,0.63006701]
[1761719310351,0.00826872,113170.0,113160.0,0.63006701]
[1761719311424,0.02719797,113170.0,113160.0,0.63006701]
[1761719311637,0.04370685,113170.0,113160.0,0.63006701]
[1761719312308,0.0247776,113170.0,113160.0,0.25840511]
[1761719312520,0.0247776,113170.0,113160.0,0.63006701]
[1761719312740,0.0247776,113170.0,113160.0,0.25840511]
[1761719313001,0.20150288,113170.0,113160.0,0.25840511]
[1761719313232,0.22043213,113170.0,113160.0,0.25840511]
[1761719314351,0.20150288,113170.0,113160.0,0.25840511]
[1761719314569,0.76730484,113180.0,113160.0,0.25840511]
[1761719314783,0.76730484,113180.0,113170.0,0.05119]
[1761719316093,0.76730484,113180.0,113170.0,0.05219]
[1761719320290,0.76730484,113180.0,113170.0,0.22891528]
[1761719321431,0.76730484,113180.0,113170.0,0.05219]
[1761719322304,0.76730484,113180.0,113170.0,0.22891528]
[1761719322970,0.76730484,113180.0,113170.0,0.05219]
[1761719324563,0.79109759,113180.0,113170.0,0.05219]
[1761719325765,0.41943569,113180.0,113170.0,0.05219]
[1761719326007,0.79109759,113180.0,113170.0,0.05219]
[1761719326462,0.81587262,113180.0,113170.0,0.05219]
[1761719334963,0.79936027,113180.0,113170.0,0.05219]
[1761719335146,0.81588564,113180.0,113170.0,0.05219]
[1761719343732,0.58994562,113180.0,113170.0,0.05219]
[1761719343948,0.58995923,113180.0,113170.0,0.22891528]
[1761719345798,0.21829733,113180.0,113170.0,0.22891528]
[1761719346051,0.58995923,113180.0,113170.0,0.22891528]
[1761719346937,0.57342479,113180.0,113170.0,0.22891528]
[1761719347195,0.58995972,113180.0,113170.0,0.22891528]
[1761719347609,0.58995972,113180.0,113170.0,0.05219]
[1761719349140,0.58996027,113180.0,113170.0,0.05219]
[1761719349638,0.21829837,113180.0,113170.0,0.05219]
[1761719350150,0.19936912,113180.0,113170.0,0.05219]
[1761719353149,0.19936912,113180.0,113170.0,0.22891528]
[1761719353586,0.19936912,113180.0,113170.0,0.05219]
[1761719353806,0.24209112,113180.0,113170.0,0.05219]
[1761719354230,0.24209112,113180.0,113170.0,0.22891528]
[1761719355323,0.24209112,113180.0,113170.0,0.05219]
[1761719357688,0.24209112,113180.0,113170.0,0.22891528]
[1761719357891,0.61364652,113180.0,113170.0,0.22891528]
[1761719358509,0.24209112,113180.0,113170.0,0.22891528]
[1761719358721,0.61364652,113180.0,113170.0,0.22891528]
[1761719359387,0.24209112,113180.0,113170.0,0.22891528]
[1761719365121,0.61364652,113180.0,113170.0,0.22891528]
[1761719365726,0.24209112,113180.0,113170.0,0.22891528]
[1761719370322,0.0675247,113180.0,113170.0,0.25778434]
[1761719370524,0.0675247,113180.0,113170.0,0.62933974]
[1761719370525,0.00826722,113180.0,113170.0,0.62933974]
[1761719370732,0.0082688,113190.0,113180.0,0.17670966]
[1761719370942,0.042722,113200.0,113190.0,0.17669405]
[1761719371152,0.0082698,113200.0,113190.0,0.22966405]
[1761719371583,0.26997939,113210.0,113190.0,0.22966405]
[1761719371792,0.3597984,113210.0,113200.0,0.05297]
[1761719373045,0.26997939,113210.0,113200.0,0.05297]
[1761719373252,0.24618664,113210.0,113200.0,0.05297]
[1761719373462,0.24718664,113210.0,113200.0,0.05297]
[1761719373674,0.25543958,113210.0,113200.0,0.05297]
[1761719373878,0.24716978,113210.0,113200.0,0.05297]
[1761719378690,0.45716978,113210.0,113200.0,0.05297]
[1761719378914,0.45716075,113210.0,113200.0,0.05297]
[1761719385346,0.45716075,113210.0,113200.0,0.22964844]
[1761719387333,0.42366913,113210.0,113200.0,0.22964844]
[1761719389854,0.42266913,113210.0,113200.0,0.22964844]
[1761719396197,0.23717316,113210.0,113200.0,0.22964844]
[1761719396889,0.23717316,113210.0,113200.0,0.25619787]
[1761719403287,0.23717316,113210.0,113200.0,0.3378076]
[1761719403504,0.23720243,113210.0,113200.0,0.25619787]
[1761719404785,0.23720243,113210.0,113200.0,0.2576754]
[1761719406784,0.41386526,113210.0,113200.0,0.2576754]
[1761719408869,0.41386075,113210.0,113200.0,0.2576754]
[1761719409967,0.23719792,113210.0,113200.0,0.2576754]
[1761719410409,0.23719792,113210.0,113200.0,0.30227735]
[1761719410858,0.23719792,113210.0,113200.0,0.67383275]
[1761719411076,0.21826867,113210.0,113200.0,0.67383275]
[1761719411528,0.21826889,113210.0,113200.0,1.04561783]
[1761719411745,0.21826889,113210.0,113200.0,1.13843684]
[1761719411963,0.21,113210.0,113200.0,1.13843684]
[1761719414457,0.21,113210.0,113200.0,0.39609636]
[1761719414677,0.21,113210.0,113200.0,1.09383489]
[1761719415775,0.21,113210.0,113200.0,0.72266465]
[1761719417749,0.21,113210.0,113200.0,1.09383489]
[1761719423611,0.21,113210.0,113200.0,0.72266465]
[1761719431528,0.21,113210.0,113200.0,0.81248366]
[1761719432214,0.21,113210.0,113200.0,0.72266465]
[1761719435853,0.01700127,113210.0,113200.0,0.72266465]
[1761719436547,0.5668537,113230.0,113220.0,0.17664723]
[1761719436764,0.57512155,113230.0,113220.0,0.20475723]
[1761719437188,0.57512155,113230.0,113220.0,0.22858723]
[1761719438459,0.57516982,113230.0,113220.0,0.22858723]
[1761719438682,0.02736781,113230.0,113220.0,0.22858723]
[1761719438927,0.00831612,113230.0,113220.0,0.22858723]
[1761719439410,0.00831612,113230.0,113220.0,0.62297807]
[1761719439648,0.00831612,113230.0,113220.0,0.25180783]
[1761719439864,0.00831612,113230.0,113220.0,0.62297807]
[1761719440625,0.00831612,113230.0,113220.0,0.62597807]
[1761719441059,0.00831612,113230.0,113220.0,0.60275747]
[1761719441708,0.00831612,113230.0,113220.0,0.60375747]
[1761719442338,0.00852806,113230.0,113220.0,0.60375747]
[1761719443602,0.00852806,113230.0,113220.0,0.63030108]
[1761719444226,0.00852806,113230.0,113220.0,0.25913084]
[1761719444432,0.00852806,113230.0,113220.0,0.63030108]
[1761719444861,0.00852806,113230.0,113220.0,0.6764408]
[1761719445278,0.00852806,113230.0,113220.0,0.63030108]
[1761719446071,0.00852806,113230.0,113220.0,0.25913084]
[1761719446270,0.00852806,113230.0,113220.0,0.63030108]
[1761719451210,0.00852806,113230.0,113220.0,1.00147132]
[1761719451647,0.00852806,113230.0,113220.0,1.46246057]
[1761719451890,0.00852806,113230.0,113220.0,1.89227958]
[1761719451891,0.00026021,113230.0,113220.0,1.89227958]
[1761719453145,0.00026021,113230.0,113220.0,1.90139452]
[1761719453367,0.00026021,113230.0,113220.0,1.89839452]
[1761719453809,0.00026021,113230.0,113220.0,1.90439452]
[1761719454240,0.00026021,113230.0,113220.0,1.90539452]
[1761719454689,0.00026021,113230.0,113220.0,0.78276886]
[1761719454908,0.00026021,113230.0,113220.0,1.52510934]
[1761719455131,0.00026021,113230.0,113220.0,1.43529033]
[1761719460423,0.00026021,113230.0,113220.0,1.80646057]
[1761719460836,0.00026021,113230.0,113220.0,1.43529033]
[1761719461249,0.00026021,113230.0,113220.0,1.80646057]
[1761719473355,0.00026021,113230.0,113220.0,0.69294985]
[1761719473568,0.00026021,113230.0,113220.0,1.5246096]
[1761719485261,0.3114024,113270.0,113260.0,0.02574]
[1761719485262,0.22641399,113270.0,113260.0,0.02574]
[1761719485474,0.22646233,113270.0,113260.0,0.02574]
[1761719485696,0.22730974,113270.0,113260.0,0.04866]
[1761719486107,0.2361382,113270.0,113260.0,0.04866]
[1761719486241,0.05073998,113270.0,113260.0,0.22524484]
[1761719486459,0.22730923,113270.0,113260.0,0.22524484]
[1761719486670,0.23377923,113270.0,113260.0,0.04866]
[1761719486877,0.23477923,113270.0,113260.0,0.04866]
[1761719488168,0.74426923,113270.0,113260.0,0.04866]
[1761719492473,0.56769998,113270.0,113260.0,0.22524484]
[1761719492866,0.73782949,113270.0,113260.0,0.22524484]
[1761719493054,0.51965771,113270.0,113260.0,0.68598422]
[1761719493313,0.56965771,113270.0,113260.0,0.71251576]
[1761719493796,0.56865771,113270.0,113260.0,0.71251576]
[1761719494302,0.56865771,113270.0,113260.0,0.71451576]
[1761719495771,0.51865771,113270.0,113260.0,0.71551576]
[1761719498254,0.57054348,113270.0,113260.0,0.25477638]
[1761719498473,0.75358273,113270.0,113260.0,0.22824484]
[1761719498689,0.7726376,113270.0,113260.0,0.22824484]
[1761719499129,0.7855876,113270.0,113260.0,0.22824484]
[1761719499344,0.7855876,113270.0,113260.0,0.20532484]
[1761719500016,0.7855876,113270.0,113260.0,0.20432484]
[1761719500261,0.7855876,113270.0,113260.0,0.22827484]
[1761719500529,0.7855876,113270.0,113260.0,0.22627484]
[1761719501367,0.78558688,113270.0,113260.0,0.22627484]
[1761719503408,0.76653201,113270.0,113260.0,0.22627484]
[1761719503611,0.78558788,113270.0,113260.0,0.22627484]
[1761719505812,0.78558788,113270.0,113260.0,0.02574]
[1761719506036,0.17658484,113260.0,113250.0,0.21031866]
[1761719506265,0.60953083,113260.0,113250.0,0.02488]
[1761719506477,0.6285867,113260.0,113240.0,0.21914011]
[1761719506696,0.18324907,113250.0,113240.0,0.03372]
[1761719506937,0.20429168,113250.0,113240.0,0.00977]
[1761719507169,0.20429168,113250.0,113240.0,0.18638603]
[1761719507400,0.17661603,113240.0,113230.0,0.00977]
[1761719507632,0.19783727,113240.0,113230.0,0.00977]
[1761719507864,0.17663163,113230.0,113220.0,0.03548]
[1761719508098,0.17663163,113230.0,113220.0,0.05059]
[1761719508099,0.20432287,113230.0,113220.0,0.05059]
[1761719508574,0.19137287,113230.0,113220.0,0.05059]
[1761719508790,0.19137287,113230.0,113220.0,0.22723723]
[1761719509005,0.19137287,113230.0,113220.0,0.05059]
[1761719510105,0.23217725,113230.0,113220.0,0.05059]
[1761719510325,0.19137287,113230.0,113220.0,0.05059]
[1761719511023,0.19137287,113230.0,113220.0,0.22723723]
[1761719511655,0.20432287,113230.0,113220.0,0.02664]
[1761719511873,0.20432287,113230.0,113210.0,0.22096235]
[1761719512066,0.28359012,113230.0,113210.0,0.22101062]
[1761719512330,0.28359012,113230.0,113220.0,0.01511]
[1761719512782,0.20432287,113230.0,113220.0,0.02664]
[1761719512998,0.20432287,113230.0,113220.0,0.22723723]
[1761719513221,0.19137287,113230.0,113220.0,0.22723723]
[1761719516645,0.19137287,113230.0,113220.0,0.05059]
[1761719516868,0.20432287,113230.0,113220.0,0.05059]
[1761719517084,0.24651599,113230.0,113220.0,0.05059]
[1761719517545,0.24651599,113230.0,113220.0,0.02664]
[1761719517976,0.25556719,113230.0,113220.0,0.02664]
[1761719518655,0.17664723,113220.0,113210.0,0.01157827]
[1761719518879,0.18959723,113220.0,113210.0,0.01157827]
[1761719519104,0.24153195,113220.0,113210.0,0.02668827]
[1761719520834,0.24152921,113220.0,113210.0,0.02668827]
[1761719521698,0.24152921,113220.0,113210.0,4.827e-05]
[1761719521914,0.75140087,113220.0,113210.0,4.827e-05]
[1761719522143,0.77038813,113220.0,113210.0,4.827e-05]
[1761719522367,0.79693855,113220.0,113210.0,4.827e-05]
[1761719523112,1.80165903,113220.0,113210.0,4.827e-05]
[1761719523358,1.8261121,113220.0,113210.0,4.827e-05]
[1761719523593,1.8886976,113220.0,113210.0,4.827e-05]
[1761719523815,1.85797393,113220.0,113210.0,4.827e-05]
[1761719524858,1.85796314,113220.0,113210.0,4.827e-05]
[1761719525572,1.12376548,113210.0,113200.0,0.00147753]
[1761719525818,1.32847423,113210.0,113200.0,0.00147753]
[1761719527441,1.33147423,113210.0,113200.0,0.00147753]
[1761719528030,1.35803055,113210.0,113200.0,0.00147753]
[1761719528269,1.33433029,113210.0,113200.0,0.00147753]
[1761719530245,1.3819158,113210.0,113200.0,0.00147753]
[1761719531341,0.24646532,113190.0,113180.0,0.01358166]
[1761719531549,0.28663445,113190.0,113180.0,0.02951452]
[1761719531738,0.29310445,113190.0,113180.0,0.02951452]
[1761719533317,0.66459185,113190.0,113180.0,0.02951452]
[1761719534390,0.68828601,113190.0,113180.0,0.02951452]
[1761719536252,0.31679861,113190.0,113180.0,0.02951452]
[1761719536461,0.71988636,113190.0,113180.0,0.02951452]
[1761719537569,0.34839896,113190.0,113180.0,0.02951452]
[1761719537796,0.71988636,113190.0,113180.0,0.02951452]
[1761719538032,0.34839896,113190.0,113180.0,0.02951452]
[1761719538229,0.71988636,113190.0,113180.0,0.02951452]
[1761719539466,0.6961922,113190.0,113180.0,0.02951452]
[1761719540535,0.3247048,113190.0,113180.0,0.02376407]
[1761719540743,0.6961922,113190.0,113180.0,0.02376407]
[1761719541356,0.3488048,113190.0,113180.0,0.00048286]
[1761719544387,0.96787771,113190.0,113180.0,0.00048286]
[1761719544599,0.17671927,113180.0,113160.0,0.59507782]
[1761719544812,0.62066666,113180.0,113160.0,0.22359042]
[1761719545037,0.65226701,113180.0,113160.0,0.2216041]
[1761719545251,0.43594475,113180.0,113160.0,0.2216041]
[1761719545517,0.24117662,113180.0,113160.0,0.2216041]
[1761719545737,0.60194572,113180.0,113160.0,0.5930915]
[1761719545975,0.60194572,113180.0,113170.0,0.01545]
[1761719546184,0.23045832,113180.0,113170.0,0.01545]
[1761719546385,0.26205867,113180.0,113170.0,0.01545]
[1761719547330,0.26205867,113180.0,113170.0,0.01745]
[1761719547546,0.26205867,113180.0,113170.0,0.01845]
[1761719547547,0.25481335,113180.0,113170.0,0.01845]
[1761719547727,0.24432335,113180.0,113170.0,0.0549]
[1761719548645,0.25481335,113180.0,113170.0,0.03033]
[1761719549405,0.25481335,113180.0,113170.0,0.0549]
[1761719549805,0.25481335,113180.0,113170.0,0.03033]
[1761719550306,0.25481335,113180.0,113170.0,0.0305421]
[1761719551395,0.27912851,113180.0,113170.0,0.0150921]
[1761719551610,0.29824851,113180.0,113170.0,0.0032121]
[1761719552477,0.66973591,113180.0,113170.0,0.0032121]
[1761719552694,0.7957372,113180.0,113170.0,0.0032121]
[1761719552906,0.17672528,113170.0,113150.0,0.22200616]
[1761719553128,0.30703965,113170.0,113150.0,0.22200616]
[1761719553336,0.30703965,113170.0,113150.0,0.59349356]
[1761719553337,0.25945414,113170.0,113150.0,0.59349356]
[1761719553749,0.17674089,113160.0,113150.0,0.22200616]
[1761719553891,0.24366765,113160.0,113150.0,0.22200616]
[1761719554111,0.27547594,113160.0,113150.0,0.23745616]
[1761719554315,0.27547594,113160.0,113150.0,0.23754433]
[1761719554528,0.05511555,113160.0,113150.0,0.60903173]
[1761719554764,0.05511555,113160.0,113150.0,0.23754433]
[1761719555194,0.09838106,113160.0,113150.0,0.23754433]
[1761719555406,0.09838106,113160.0,113150.0,0.60328047]
[1761719556049,0.09838106,113160.0,113150.0,0.60428047]
[1761719556180,0.09838106,113160.0,113150.0,0.23279307]
[1761719556380,0.05079555,113160.0,113150.0,0.60428047]
[1761719556590,0.05079555,113160.0,113150.0,0.60528047]
[1761719557223,0.05907346,113160.0,113150.0,0.60528047]
[1761719558791,0.08784389,113160.0,113150.0,0.60570477]
[1761719560488,0.26458478,113160.0,113150.0,0.60570477]
[1761719560736,0.26458478,113160.0,113150.0,0.22537955]
[1761719560957,0.31056478,113160.0,113150.0,0.0024243]
[1761719561169,0.37469903,113160.0,113150.0,0.0024243]
[1761719561419,0.37469568,113160.0,113150.0,0.0024243]
[1761719561659,0.72188308,113160.0,113150.0,0.0024243]
[1761719561876,0.32162525,113160.0,113150.0,0.0286943]
[1761719562061,0.32162525,113160.0,113150.0,0.0522843]
[1761719562304,0.32362525,113160.0,113150.0,0.0276943]
[1761719562518,0.30707651,113160.0,113150.0,0.0276943]
[1761719563357,0.81656651,113160.0,113150.0,0.0276943]
[1761719563565,0.768981,113160.0,113150.0,0.0276943]
[1761719565090,0.80225798,113160.0,113150.0,0.0004243]
[1761719565955,1.17374538,113160.0,113150.0,0.0004243]
[1761719567457,1.14193709,113160.0,113150.0,0.0004243]
[1761719570118,2.02777292,113160.0,113150.0,0.0004243]
[1761719570321,2.04355014,113160.0,113150.0,0.0004243]
[1761719571886,2.07529284,113160.0,113150.0,0.0004243]
[1761719572312,1.33231804,113160.0,113150.0,0.0004243]
[1761719572493,2.07529284,113160.0,113150.0,0.0004243]
[1761719572927,1.33231804,113160.0,113150.0,0.0004243]
[1761719573132,2.07529284,113160.0,113150.0,0.0004243]
[1761719574387,2.05941284,113160.0,113150.0,0.0004243]
[1761719575477,2.05940397,113160.0,113150.0,0.0004243]
[1761719576366,2.01181846,113160.0,113150.0,0.0004243]
[1761719579325,1.26884366,113160.0,113150.0,0.0004243]
[1761719579521,2.01181846,113160.0,113150.0,0.0004243]
[1761719580168,1.26884366,113160.0,113150.0,0.0004243]
[1761719580373,2.01181846,113160.0,113150.0,0.0004243]
[1761719581255,1.26884366,113160.0,113150.0,0.0004243]
[1761719581463,2.01181846,113160.0,113150.0,0.0004243]
[1761719586159,2.05940397,113160.0,113150.0,0.0004243]
[1761719590484,2.07536959,113160.0,113150.0,0.0004243]
[1761719593113,2.04362689,113160.0,113150.0,0.0004243]
[1761719593535,1.23524843,113160.0,113150.0,0.4242917]
[1761719593766,1.23524843,113160.0,113150.0,0.60104821]
[1761719593767,0.76389714,113160.0,113150.0,0.60104821]
[1761719593980,0.71556946,113160.0,113150.0,0.60104821]
[1761719594426,0.71556946,113160.0,113150.0,0.22956081]
[1761719594640,0.71556946,113160.0,113150.0,0.60104821]
[1761719594838,0.71556946,113160.0,113150.0,0.22956081]
[1761719595053,0.71556946,113160.0,113150.0,0.60104821]
[1761719595257,0.71556946,113160.0,113150.0,0.22956081]
[1761719596738,0.53882857,113160.0,113150.0,0.22956081]
[1761719596948,0.71556946,113160.0,113150.0,0.22956081]
[1761719597458,0.53882857,113160.0,113150.0,0.60116362]
[1761719598317,0.53056288,113160.0,113150.0,0.60116362]
[1761719598529,0.52856288,113160.0,113150.0,0.60116362]
[1761719598743,0.50949,113160.0,113150.0,0.60116362]
[1761719598957,0.51049,113160.0,113150.0,0.60116362]
[1761719599993,0.51049,113160.0,113150.0,0.68282298]
[1761719600226,0.50949,113160.0,113150.0,0.68282298]
[1761719600654,0.50949,113160.0,113150.0,0.68482298]
[1761719601055,0.50949,113160.0,113150.0,0.60316362]
[1761719601756,0.50949,113160.0,113150.0,1.40458544]
[1761719601979,0.50949,113160.0,113150.0,1.43113917]
[1761719602200,0.50949,113160.0,113150.0,0.68793355]
[1761719602424,0.50949,113160.0,113150.0,1.05953636]
[1761719604758,0.50949,113160.0,113150.0,1.14935537]
[1761719608468,0.50949,113160.0,113150.0,1.05953636]
[1761719613955,0.50949,113160.0,113150.0,0.68793355]
[1761719614213,0.50949,113160.0,113150.0,0.34793355]
[1761719614836,0.50949,113160.0,113150.0,0.71953636]
[1761719615060,0.50949,113160.0,113150.0,0.34793355]
[1761719615277,0.50949,113160.0,113150.0,0.71953636]
[1761719617238,0.50949,113160.0,113150.0,0.25811454]
[1761719617454,0.50949,113160.0,113150.0,0.23156081]
[1761719618335,0.68623089,113160.0,113150.0,0.23156081]
[1761719618747,0.50949,113160.0,113150.0,0.23156081]
[1761719620251,0.68623089,113160.0,113150.0,0.23156081]
[1761719620467,0.70783089,113160.0,113150.0,0.0145243]
[1761719620696,0.73512127,113160.0,113150.0,0.0145243]
[1761719620927,0.73512127,113160.0,113150.0,0.0306343]
[1761719621145,0.73512126,113160.0,113150.0,0.0296343]
[1761719621362,1.16723635,113160.0,113150.0,0.0004243]
[1761719621830,1.16823635,113160.0,113150.0,0.0004243]
[1761719622969,1.14390635,113160.0,113150.0,0.0004243]
[1761719623210,0.75505354,113160.0,113150.0,0.0523243]
[1761719623441,2.41096981,113160.0,113150.0,0.0004243]
[1761719623681,2.07115583,113160.0,113150.0,0.0004243]
[1761719623908,2.05462996,113160.0,113150.0,0.0004243]
[1761719624371,2.05262996,113160.0,113150.0,0.0004243]
[1761719624584,2.07515396,113160.0,113150.0,0.0004243]
[1761719624815,2.07615396,113160.0,113150.0,0.0004243]
[1761719625241,2.05962996,113160.0,113150.0,0.0004243]
[1761719627265,1.85962996,113160.0,113150.0,0.0004243]
[1761719627475,1.39572604,113160.0,113150.0,0.0523243]
[1761719627705,1.80351113,113160.0,113150.0,0.0523243]
[1761719627924,1.45623832,113160.0,113150.0,0.0004243]
[1761719628163,1.82684113,113160.0,113150.0,0.0004243]
[1761719629631,1.85262996,113160.0,113150.0,0.0004243]
[1761719629872,1.85362996,113160.0,113150.0,0.0004243]
[1761719630084,1.85262996,113160.0,113150.0,0.0004243]
[1761719630526,1.82384113,113160.0,113150.0,0.0004243]
[1761719635075,2.19544394,113160.0,113150.0,0.0004243]
[1761719635758,2.42723277,113160.0,113150.0,0.0004243]
[1761719636599,2.44372786,113160.0,113150.0,0.0004243]
[1761719638299,2.41994209,113160.0,113150.0,0.0004243]
[1761719640044,2.40406209,113160.0,113150.0,0.0004243]
[1761719640263,1.66085647,113160.0,113150.0,0.0004243]
[1761719640474,2.40406209,113160.0,113150.0,0.0004243]
[1761719642313,2.4516476,113160.0,113150.0,0.0004243]
[1761719643392,1.88004479,113160.0,113150.0,0.0004243]
[1761719643613,1.40034419,113160.0,113150.0,0.0165343]
[1761719643812,1.77923728,113160.0,113150.0,0.0165343]
[1761719644022,1.06442663,113160.0,113150.0,0.0523243]
[1761719644449,1.08602663,113160.0,113150.0,0.0523243]
[1761719644899,1.08602663,113160.0,113150.0,0.0284143]
[1761719645538,1.08302663,113160.0,113150.0,0.0284143]
[1761719645756,1.45562944,113160.0,113150.0,0.0284143]
[1761719646428,1.83774956,113160.0,113150.0,0.0004243]
[1761719646630,2.24968436,113160.0,113150.0,0.0004243]
[1761719646836,2.21789553,113160.0,113150.0,0.0004243]
[1761719647941,2.41789553,113160.0,113150.0,0.0004243]
[1761719648163,2.21789553,113160.0,113150.0,0.0004243]
[1761719648363,2.37031002,113160.0,113150.0,0.0004243]
[1761719648794,2.17031002,113160.0,113150.0,0.0004243]
[1761719649082,2.37031002,113160.0,113150.0,0.0004243]
[1761719649534,2.37431002,113160.0,113150.0,0.0004243]
[1761719650185,2.17431002,113160.0,113150.0,0.0004243]
[1761719650414,1.86636526,113160.0,113150.0,0.0004243]
[1761719651264,1.45444113,113160.0,113150.0,0.0004243]
[1761719651702,1.85051394,113160.0,113150.0,0.0004243]
[1761719652142,1.84951394,113160.0,113150.0,0.0004243]
[1761719652360,1.84551394,113160.0,113150.0,0.0004243]
[1761719652753,1.84751394,113160.0,113150.0,0.0004243]
[1761719655407,1.79984721,113160.0,113150.0,0.0004243]
[1761719656459,1.67659912,113160.0,113150.0,0.0004243]
[1761719657582,2.04854197,113160.0,113150.0,0.0004243]
[1761719659584,2.01675547,113160.0,113150.0,0.0004243]
[1761719663864,1.60461643,113160.0,113150.0,0.0158143]
[1761719665694,0.89059231,113160.0,113150.0,0.0516143]
[1761719665942,0.87729336,113160.0,113150.0,0.0516143]
[1761719666185,0.91347564,113160.0,113150.0,0.0516143]
[1761719666390,0.92144206,113160.0,113150.0,0.0516143]
[1761719666633,1.29321489,113160.0,113150.0,0.0516143]
[1761719667910,1.31455489,113160.0,113150.0,0.0516143]
[1761719668544,1.3383886,113160.0,113150.0,0.0280443]
[1761719669812,0.96661577,113160.0,113150.0,0.0280443]
[1761719669989,1.3383886,113160.0,113150.0,0.0280443]
[1761719671171,1.3628586,113160.0,113150.0,0.0004243]
[1761719671376,1.73463143,113160.0,113150.0,0.0004243]
[1761719671592,1.73464636,113160.0,113150.0,0.0004243]
[1761719672774,0.9911007,113160.0,113150.0,0.0004243]
[1761719672986,1.36287353,113160.0,113150.0,0.0004243]
[1761719673605,1.33840353,113160.0,113150.0,0.0004243]
[1761719674710,1.32241353,113160.0,113150.0,0.0516143]
[1761719678867,0.9506407,113160.0,113150.0,0.0516143]
[1761719679088,1.31706353,113160.0,113150.0,0.0516143]
[1761719679433,1.33865353,113160.0,113150.0,0.0280443]
[1761719680682,0.9668807,113160.0,113150.0,0.0280443]
[1761719680885,0.9648807,113160.0,113150.0,0.0280443]
[1761719681165,1.33665353,113160.0,113150.0,0.0280443]
[1761719684933,1.73270636,113160.0,113150.0,0.0004243]
[1761719685420,1.93270636,113160.0,113150.0,0.0004243]
[1761719686890,1.1891607,113160.0,113150.0,0.0004243]
[1761719687113,1.56093353,113160.0,113150.0,0.0004243]